[Event "Early-Titled-Tuesday-Blitz-April-23-2024"]
[Site "Chess.com"]
[Date "2024.04.23"]
[Round "1"]
[White "Sokoloco"]
[Black "balack95"]
[Result "0-1"]
[WhiteElo "2754"]
[BlackElo "2458"]
[TimeControl "180+1"]
[EndTime "8:07:25 PDT"]
[Termination "balack95 won on time"]

1. b3 {[%clk 0:03:00.9]} 1... e5 {[%clk 0:02:59.1]} 2. Bb2 {[%clk 0:03:00.5]}
2... Nc6 {[%clk 0:03:00]} 3. e3 {[%clk 0:03:00.7]} 3... Nf6 {[%clk 0:03:00.6]}
4. Nf3 {[%clk 0:03:01.1]} 4... e4 {[%clk 0:02:59.8]} 5. Nd4 {[%clk 0:03:01.7]}
5... d5 {[%clk 0:02:58.7]} 6. c4 {[%clk 0:02:59.2]} 6... Nxd4 {[%clk 0:02:56.2]}
7. Bxd4 {[%clk 0:03:00.1]} 7... c5 {[%clk 0:02:56.6]} 8. Bxf6 {[%clk 0:02:59.8]}
8... Qxf6 {[%clk 0:02:56.5]} 9. Nc3 {[%clk 0:03:00.6]} 9... d4 {[%clk
0:02:45.6]} 10. Nxe4 {[%clk 0:02:49.5]} 10... Qg6 {[%clk 0:02:45.6]} 11. Ng3
{[%clk 0:02:44.3]} 11... Bd6 {[%clk 0:02:38.4]} 12. Be2 {[%clk 0:02:20.1]} 12...
O-O {[%clk 0:02:24.7]} 13. O-O {[%clk 0:02:20]} 13... f5 {[%clk 0:02:08.6]} 14.
exd4 {[%clk 0:01:36.8]} 14... cxd4 {[%clk 0:02:09.5]} 15. f4 {[%clk 0:01:36.4]}
15... Bc5 {[%clk 0:01:59.3]} 16. Bd3 {[%clk 0:01:35.8]} 16... Bd7 {[%clk
0:01:58.6]} 17. Qc2 {[%clk 0:01:31.3]} 17... h5 {[%clk 0:01:48.5]} 18. Rf2
{[%clk 0:00:55.6]} 18... h4 {[%clk 0:01:48.2]} 19. Nf1 {[%clk 0:00:56.2]} 19...
Bc6 {[%clk 0:01:46.4]} 20. Re1 {[%clk 0:00:48.9]} 20... Rae8 {[%clk 0:01:46.2]}
21. Rxe8 {[%clk 0:00:48.9]} 21... Rxe8 {[%clk 0:01:47.1]} 22. Bxf5 {[%clk
0:00:46.4]} 22... d3 {[%clk 0:01:43.1]} 23. Bxg6 {[%clk 0:00:39.6]} 23... dxc2
{[%clk 0:01:42.1]} 24. Bxc2 {[%clk 0:00:40.2]} 24... Bxf2+ {[%clk 0:01:39.3]}
25. Kxf2 {[%clk 0:00:41.1]} 25... b5 {[%clk 0:01:37.7]} 26. d4 {[%clk
0:00:38.8]} 26... bxc4 {[%clk 0:01:34.5]} 27. bxc4 {[%clk 0:00:39.7]} 27... Rb8
{[%clk 0:01:34.5]} 28. Bb3 {[%clk 0:00:38.9]} 28... Kf8 {[%clk 0:01:33.4]} 29.
d5 {[%clk 0:00:38.2]} 29... Be8 {[%clk 0:01:21]} 30. c5 {[%clk 0:00:38]} 30...
a5 {[%clk 0:01:21.7]} 31. c6 {[%clk 0:00:31.6]} 31... Ke7 {[%clk 0:01:21.2]} 32.
Nd2 {[%clk 0:00:31.5]} 32... a4 {[%clk 0:01:21.3]} 33. Bc4 {[%clk 0:00:24.4]}
33... Rb2 {[%clk 0:01:20.3]} 34. Ke3 {[%clk 0:00:24.8]} 34... Bxc6 {[%clk
0:01:14.6]} 35. dxc6 {[%clk 0:00:24.3]} 35... Kd6 {[%clk 0:01:15.5]} 36. Kd3
{[%clk 0:00:15.1]} 36... Kxc6 {[%clk 0:01:15.9]} 37. g3 {[%clk 0:00:14]} 37...
h3 {[%clk 0:01:15.5]} 38. Kc3 {[%clk 0:00:10.5]} 38... a3 {[%clk 0:01:15]} 39.
Bb3 {[%clk 0:00:10.9]} 39... Kd6 {[%clk 0:01:13.2]} 40. Kd3 {[%clk 0:00:08.4]}
40... Ke7 {[%clk 0:01:12.1]} 41. Ke3 {[%clk 0:00:08.3]} 41... Kf6 {[%clk
0:01:12.7]} 42. Ne4+ {[%clk 0:00:07.3]} 42... Kf5 {[%clk 0:01:11.2]} 43. Nd6+
{[%clk 0:00:07.5]} 43... Kf6 {[%clk 0:01:11.2]} 44. Ne4+ {[%clk 0:00:05.9]}
44... Kf5 {[%clk 0:01:11.1]} 45. Ng5 {[%clk 0:00:03.1]} 45... Rxb3+ {[%clk
0:01:08.7]} 46. axb3 {[%clk 0:00:01.3]} 46... a2 {[%clk 0:01:09.6]} 47. Nf3
{[%clk 0:00:01.1]} 47... a1=Q {[%clk 0:01:10.1]} 48. Nd4+ {[%clk 0:00:02]} 48...
Kf6 {[%clk 0:01:09.6]} 49. g4 {[%clk 0:00:02.1]} 49... Qc3+ {[%clk 0:01:09.2]}
50. Ke4 {[%clk 0:00:02.5]} 50... Qe1+ {[%clk 0:01:09.1]} 51. Kf3 {[%clk
0:00:02.4]} 51... Qd1+ {[%clk 0:01:09.3]} 52. Ke4 {[%clk 0:00:02.8]} 52... Qh1+
{[%clk 0:01:09.4]} 53. Ke3 {[%clk 0:00:02.1]} 53... Qg1+ {[%clk 0:01:09.4]} 54.
Ke4 {[%clk 0:00:02.3]} 54... Qxh2 {[%clk 0:01:09.9]} 55. g5+ {[%clk 0:00:02.7]}
55... Kg6 {[%clk 0:01:09.5]} 56. f5+ {[%clk 0:00:02.7]} 56... Kh5 {[%clk
0:01:09.2]} 57. f6 {[%clk 0:00:02.7]} 57... Qg2+ {[%clk 0:01:06.9]} 58. Kf5
{[%clk 0:00:02.6]} 58... Qxg5+ {[%clk 0:01:06.3]} 59. Ke4 {[%clk 0:00:02.9]}
59... gxf6 {[%clk 0:01:06.1]} 60. Nf5 {[%clk 0:00:03]} 60... Qxf5+ {[%clk
0:01:05.8]} 0-1

[Event "Early-Titled-Tuesday-Blitz-April-23-2024"]
[Site "Chess.com"]
[Date "2024.04.23"]
[Round "1"]
[White "KVAIDAN"]
[Black "IwkooO"]
[Result "0-1"]
[WhiteElo "2375"]
[BlackElo "2685"]
[TimeControl "180+1"]
[EndTime "8:07:26 PDT"]
[Termination "IwkooO won by resignation"]

1. f4 {[%clk 0:03:00]} 1... d5 {[%clk 0:02:56.4]} 2. Nf3 {[%clk 0:03:00]} 2...
Nf6 {[%clk 0:02:55.6]} 3. e3 {[%clk 0:03:00.4]} 3... g6 {[%clk 0:02:55.5]} 4.
Be2 {[%clk 0:03:00]} 4... Bg7 {[%clk 0:02:56.2]} 5. O-O {[%clk 0:02:59.6]} 5...
O-O {[%clk 0:02:56.4]} 6. d3 {[%clk 0:03:00.1]} 6... Nbd7 {[%clk 0:02:42.1]} 7.
Ne5 {[%clk 0:02:54]} 7... c5 {[%clk 0:02:37.8]} 8. c3 {[%clk 0:02:49.9]} 8... e6
{[%clk 0:02:35.9]} 9. Nd2 {[%clk 0:02:48.2]} 9... Qc7 {[%clk 0:02:32.9]} 10.
Ndf3 {[%clk 0:02:46.7]} 10... b6 {[%clk 0:02:32.7]} 11. Qe1 {[%clk 0:02:46.1]}
11... Ba6 {[%clk 0:02:31]} 12. Bd2 {[%clk 0:02:43.4]} 12... Nxe5 {[%clk
0:02:29]} 13. fxe5 {[%clk 0:02:43.4]} 13... Nd7 {[%clk 0:02:27.1]} 14. d4 {[%clk
0:02:43.7]} 14... Bxe2 {[%clk 0:02:27]} 15. Qxe2 {[%clk 0:02:42.6]} 15... f6
{[%clk 0:02:27.5]} 16. c4 {[%clk 0:02:30.6]} 16... fxe5 {[%clk 0:02:19.1]} 17.
cxd5 {[%clk 0:02:29.2]} 17... exd5 {[%clk 0:02:19.2]} 18. e4 {[%clk 0:02:10.3]}
18... Rae8 {[%clk 0:01:58.4]} 19. dxe5 {[%clk 0:01:32.6]} 19... Nxe5 {[%clk
0:01:57.3]} 20. Nxe5 {[%clk 0:01:32.9]} 20... Rxf1+ {[%clk 0:01:49]} 21. Qxf1
{[%clk 0:01:31.7]} 21... Bxe5 {[%clk 0:01:47.6]} 22. exd5 {[%clk 0:01:31.9]}
22... Bxh2+ {[%clk 0:01:46.9]} 23. Kh1 {[%clk 0:01:32.5]} 23... Bg3 {[%clk
0:01:43.7]} 24. Bg5 {[%clk 0:01:14.6]} 24... Qe5 {[%clk 0:01:40.8]} 25. Qf6
{[%clk 0:01:08.8]} 25... Qxf6 {[%clk 0:01:34.3]} 26. Bxf6 {[%clk 0:01:08.2]}
26... Rf8 {[%clk 0:01:33.7]} 27. Be7 {[%clk 0:01:01.8]} 27... Rf5 {[%clk
0:01:32.5]} 28. Rd1 {[%clk 0:00:59.6]} 28... Rh5+ {[%clk 0:00:46.9]} 29. Kg1
{[%clk 0:00:54.4]} 29... Bh2+ {[%clk 0:00:47.8]} 30. Kf1 {[%clk 0:00:48.6]}
30... Rf5+ {[%clk 0:00:47.7]} 31. Ke2 {[%clk 0:00:46.9]} 31... Re5+ {[%clk
0:00:48.3]} 32. Kd3 {[%clk 0:00:46.7]} 32... Rxe7 {[%clk 0:00:49.2]} 33. Kc4
{[%clk 0:00:47]} 33... a6 {[%clk 0:00:45.3]} 34. a4 {[%clk 0:00:46.6]} 34... Bd6
{[%clk 0:00:43.7]} 35. b3 {[%clk 0:00:41.7]} 35... Kg7 {[%clk 0:00:43.1]} 36.
Rd3 {[%clk 0:00:39.1]} 36... Re4+ {[%clk 0:00:43.1]} 37. Kc3 {[%clk 0:00:38.6]}
37... Kf6 {[%clk 0:00:43.3]} 38. Rf3+ {[%clk 0:00:35.8]} 38... Ke5 {[%clk
0:00:43.6]} 39. Rf7 {[%clk 0:00:36.3]} 39... Kxd5 {[%clk 0:00:42]} 40. Rxh7
{[%clk 0:00:35.9]} 40... Rg4 {[%clk 0:00:42.7]} 41. Rb7 {[%clk 0:00:34.8]} 41...
Kc6 {[%clk 0:00:42.8]} 42. Ra7 {[%clk 0:00:34.6]} 42... Rg3+ {[%clk 0:00:43.1]}
43. Kc2 {[%clk 0:00:32.3]} 43... Rxg2+ {[%clk 0:00:43.7]} 44. Kc3 {[%clk
0:00:31.8]} 44... Rg3+ {[%clk 0:00:41.6]} 45. Kc2 {[%clk 0:00:30]} 45... a5
{[%clk 0:00:42.2]} 46. Rf7 {[%clk 0:00:29]} 46... g5 {[%clk 0:00:42.3]} 47. Rf5
{[%clk 0:00:23.1]} 47... g4 {[%clk 0:00:37.6]} 48. Rg5 {[%clk 0:00:19.2]} 48...
Rg1 {[%clk 0:00:36.7]} 49. Kc3 {[%clk 0:00:19.3]} 49... g3 {[%clk 0:00:35.8]}
50. b4 {[%clk 0:00:19.6]} 50... axb4+ {[%clk 0:00:35.4]} 51. Kb3 {[%clk
0:00:20]} 51... g2 {[%clk 0:00:35.8]} 52. Ka2 {[%clk 0:00:17.5]} 52... c4 {[%clk
0:00:35.9]} 0-1

[Event "Early-Titled-Tuesday-Blitz-April-23-2024"]
[Site "Chess.com"]
[Date "2024.04.23"]
[Round "1"]
[White "Attacker_2006"]
[Black "rasmussvane"]
[Result "0-1"]
[WhiteElo "2535"]
[BlackElo "2972"]
[TimeControl "180+1"]
[EndTime "8:07:27 PDT"]
[Termination "rasmussvane won by checkmate"]

1. e4 {[%clk 0:02:59.4]} 1... c6 {[%clk 0:02:57.7]} 2. d4 {[%clk 0:02:49.6]}
2... d5 {[%clk 0:02:58.6]} 3. e5 {[%clk 0:02:50.1]} 3... Bf5 {[%clk 0:02:57.3]}
4. h4 {[%clk 0:02:50.6]} 4... h5 {[%clk 0:02:54.3]} 5. c4 {[%clk 0:02:50.3]}
5... e6 {[%clk 0:02:51.5]} 6. Nc3 {[%clk 0:02:44.6]} 6... Ne7 {[%clk 0:02:50.3]}
7. Nge2 {[%clk 0:02:43.8]} 7... Nd7 {[%clk 0:02:41.5]} 8. Bg5 {[%clk 0:02:41.7]}
8... Qb6 {[%clk 0:02:38.8]} 9. Ng3 {[%clk 0:02:39.4]} 9... Bg6 {[%clk
0:02:33.6]} 10. Rc1 {[%clk 0:02:34.6]} 10... Qxb2 {[%clk 0:02:30]} 11. Bd3
{[%clk 0:02:33.5]} 11... dxc4 {[%clk 0:02:30]} 12. Bxg6 {[%clk 0:02:31.8]} 12...
Nxg6 {[%clk 0:02:29.1]} 13. O-O {[%clk 0:02:30.5]} 13... Nb6 {[%clk 0:02:21.2]}
14. f4 {[%clk 0:02:21.2]} 14... Bb4 {[%clk 0:02:11.4]} 15. Nce4 {[%clk
0:01:22.6]} 15... Ne7 {[%clk 0:02:09.1]} 16. Rf3 {[%clk 0:00:47.2]} 16... c3
{[%clk 0:01:36.3]} 17. Nd6+ {[%clk 0:00:26]} 17... Bxd6 {[%clk 0:01:30.2]} 18.
exd6 {[%clk 0:00:26.9]} 18... Ned5 {[%clk 0:01:30.9]} 19. f5 {[%clk 0:00:27.3]}
19... f6 {[%clk 0:01:17.1]} 20. Rf2 {[%clk 0:00:14]} 20... Qb4 {[%clk
0:01:10.9]} 21. fxe6 {[%clk 0:00:13]} 21... fxg5 {[%clk 0:01:05.7]} 22. d7+
{[%clk 0:00:09]} 22... Kd8 {[%clk 0:01:05.8]} 23. Nxh5 {[%clk 0:00:07.5]} 23...
Qe7 {[%clk 0:00:51.2]} 24. Qg4 {[%clk 0:00:07.8]} 24... g6 {[%clk 0:00:23.7]}
25. Ng3 {[%clk 0:00:07.8]} 25... Rxh4 {[%clk 0:00:21.6]} 26. Qf3 {[%clk
0:00:07.9]} 26... Rf4 {[%clk 0:00:21.4]} 27. Qd3 {[%clk 0:00:08.4]} 27... Qxe6
{[%clk 0:00:20]} 28. Re2 {[%clk 0:00:08.1]} 28... Qxd7 {[%clk 0:00:19.9]} 29.
Qxg6 {[%clk 0:00:08.1]} 29... Kc7 {[%clk 0:00:19]} 30. Qxg5 {[%clk 0:00:08.2]}
30... Raf8 {[%clk 0:00:19.1]} 31. Ne4 {[%clk 0:00:07.1]} 31... Qf5 {[%clk
0:00:16.1]} 32. Qg7+ {[%clk 0:00:06.4]} 32... Rf7 {[%clk 0:00:16.2]} 33. Qg3
{[%clk 0:00:04.8]} 33... Qg4 {[%clk 0:00:16.7]} 34. Qd3 {[%clk 0:00:03.1]} 34...
Qf5 {[%clk 0:00:10.2]} 35. Qc2 {[%clk 0:00:02.2]} 35... Rf1+ {[%clk 0:00:09.1]}
36. Rxf1 {[%clk 0:00:01.9]} 36... Qxf1+ {[%clk 0:00:10]} 37. Kh2 {[%clk
0:00:02.7]} 37... Rh7+ {[%clk 0:00:10.8]} 38. Kg3 {[%clk 0:00:03.3]} 38... Qf4#
{[%clk 0:00:11.5]} 0-1

[Event "Early-Titled-Tuesday-Blitz-April-23-2024"]
[Site "Chess.com"]
[Date "2024.04.23"]
[Round "1"]
[White "JSPrepz"]
[Black "whitemirrorninja"]
[Result "1-0"]
[WhiteElo "2803"]
[BlackElo "2455"]
[TimeControl "180+1"]
[EndTime "8:07:28 PDT"]
[Termination "JSPrepz won by resignation"]

1. e4 {[%clk 0:03:00.9]} 1... c5 {[%clk 0:02:59.3]} 2. Nf3 {[%clk 0:03:01]} 2...
Nc6 {[%clk 0:02:59.3]} 3. b4 {[%clk 0:03:01.3]} 3... cxb4 {[%clk 0:02:54.5]} 4.
d4 {[%clk 0:03:01.4]} 4... e6 {[%clk 0:02:53.6]} 5. d5 {[%clk 0:03:00.4]} 5...
Na5 {[%clk 0:02:42.6]} 6. a3 {[%clk 0:02:55]} 6... Nf6 {[%clk 0:02:41.4]} 7. d6
{[%clk 0:02:41.6]} 7... Nxe4 {[%clk 0:02:32.8]} 8. axb4 {[%clk 0:02:41.7]} 8...
Nc6 {[%clk 0:02:32.7]} 9. b5 {[%clk 0:02:38.9]} 9... Nb8 {[%clk 0:02:16.6]} 10.
Bd3 {[%clk 0:02:18]} 10... Nxd6 {[%clk 0:02:13.5]} 11. Bb2 {[%clk 0:02:14]}
11... f6 {[%clk 0:02:11.3]} 12. O-O {[%clk 0:02:09.4]} 12... Nf7 {[%clk
0:02:11]} 13. c4 {[%clk 0:02:04.6]} 13... b6 {[%clk 0:02:10.4]} 14. Be4 {[%clk
0:02:03.4]} 14... d5 {[%clk 0:02:05.6]} 15. cxd5 {[%clk 0:02:04.3]} 15... Nd6
{[%clk 0:02:03.1]} 16. Bc2 {[%clk 0:01:47.9]} 16... e5 {[%clk 0:01:54.7]} 17.
Nxe5 {[%clk 0:01:41.5]} 17... fxe5 {[%clk 0:01:54.3]} 18. Qh5+ {[%clk
0:01:41.7]} 18... Nf7 {[%clk 0:01:50.6]} 19. Re1 {[%clk 0:01:29.5]} 19... Nd7
{[%clk 0:01:49.3]} 20. Bxe5 {[%clk 0:00:54]} 20... Bb4 {[%clk 0:01:48]} 21. Bc3+
{[%clk 0:00:52.1]} 21... Be7 {[%clk 0:01:43.9]} 22. d6 {[%clk 0:00:52.1]} 22...
g6 {[%clk 0:01:40]} 23. Qd5 {[%clk 0:00:35.8]} 23... Bb7 {[%clk 0:01:23]} 24.
Qxb7 {[%clk 0:00:35.8]} 24... Nxd6 {[%clk 0:01:23]} 25. Qd5 {[%clk 0:00:36.4]}
25... Rf8 {[%clk 0:01:19.4]} 26. Qxd6 {[%clk 0:00:36.1]} 26... Nf6 {[%clk
0:00:56]} 27. Qc6+ {[%clk 0:00:29]} 27... Kf7 {[%clk 0:00:54.5]} 28. Bb3+ {[%clk
0:00:24.8]} 28... Kg7 {[%clk 0:00:54.8]} 29. Nd2 {[%clk 0:00:22.3]} 29... Rc8
{[%clk 0:00:54.5]} 30. Qf3 {[%clk 0:00:20.7]} 30... Rc5 {[%clk 0:00:48.5]} 31.
Ne4 {[%clk 0:00:20.6]} 31... Rf5 {[%clk 0:00:48.5]} 32. Qh3 {[%clk 0:00:18.1]}
32... Qc7 {[%clk 0:00:43.3]} 33. g4 {[%clk 0:00:17.8]} 33... Rf4 {[%clk
0:00:33.4]} 34. g5 {[%clk 0:00:17.9]} 34... h5 {[%clk 0:00:21]} 35. gxf6+ {[%clk
0:00:18.3]} 35... Bxf6 {[%clk 0:00:21.4]} 36. Bxf6+ {[%clk 0:00:15.8]} 36...
R8xf6 {[%clk 0:00:22.3]} 37. Nxf6 {[%clk 0:00:16.1]} 37... Kxf6 {[%clk
0:00:22.4]} 38. Rad1 {[%clk 0:00:16.1]} 38... Qc5 {[%clk 0:00:20.6]} 39. Qe6+
{[%clk 0:00:15.6]} 39... Kg5 {[%clk 0:00:20.7]} 40. Rd5+ {[%clk 0:00:14.7]}
40... Rf5 {[%clk 0:00:20.3]} 41. Rxc5 {[%clk 0:00:14.7]} 41... Rxc5 {[%clk
0:00:21.2]} 42. Re5+ {[%clk 0:00:14.4]} 42... Rxe5 {[%clk 0:00:20.8]} 43. Qxe5+
{[%clk 0:00:15.3]} 43... Kh6 {[%clk 0:00:21.7]} 44. h4 {[%clk 0:00:15.9]} 44...
Kh7 {[%clk 0:00:21.3]} 45. Qe7+ {[%clk 0:00:16.1]} 45... Kh8 {[%clk 0:00:21.1]}
46. Qf8+ {[%clk 0:00:16.5]} 46... Kh7 {[%clk 0:00:20.7]} 47. Qg8+ {[%clk
0:00:17.2]} 1-0

[Event "Early-Titled-Tuesday-Blitz-April-23-2024"]
[Site "Chess.com"]
[Date "2024.04.23"]
[Round "1"]
[White "CMButgood"]
[Black "Bykov_Egor"]
[Result "0-1"]
[WhiteElo "2155"]
[BlackElo "2603"]
[TimeControl "180+1"]
[EndTime "8:07:30 PDT"]
[Termination "Bykov_Egor won by checkmate"]

1. e4 {[%clk 0:02:50.7]} 1... c6 {[%clk 0:02:57.5]} 2. d4 {[%clk 0:02:50.9]}
2... d5 {[%clk 0:02:56.7]} 3. e5 {[%clk 0:02:51.5]} 3... Bf5 {[%clk 0:02:55.8]}
4. Nd2 {[%clk 0:02:51.9]} 4... e6 {[%clk 0:02:54.5]} 5. Nb3 {[%clk 0:02:52.3]}
5... Nd7 {[%clk 0:02:51.4]} 6. Nf3 {[%clk 0:02:52.6]} 6... h6 {[%clk 0:02:44.3]}
7. Be2 {[%clk 0:02:53]} 7... Ne7 {[%clk 0:02:44.4]} 8. O-O {[%clk 0:02:53.5]}
8... g5 {[%clk 0:02:36.1]} 9. Ne1 {[%clk 0:02:53.2]} 9... f6 {[%clk 0:02:06.4]}
10. Bh5+ {[%clk 0:02:49.4]} 10... Bg6 {[%clk 0:02:06.3]} 11. Bxg6+ {[%clk
0:02:45.9]} 11... Nxg6 {[%clk 0:02:07.2]} 12. Qh5 {[%clk 0:02:45.7]} 12... Kf7
{[%clk 0:02:07.5]} 13. f4 {[%clk 0:02:44.7]} 13... gxf4 {[%clk 0:01:50.1]} 14.
exf6 {[%clk 0:02:00]} 14... Nxf6 {[%clk 0:01:46.9]} 15. Rxf4 {[%clk 0:01:59.9]}
15... Bd6 {[%clk 0:01:42.7]} 16. Rf1 {[%clk 0:01:55.8]} 16... Kg7 {[%clk
0:01:40.3]} 17. Qe2 {[%clk 0:01:52.4]} 17... Qe7 {[%clk 0:01:27.3]} 18. Nd3
{[%clk 0:01:43.2]} 18... Raf8 {[%clk 0:01:14.1]} 19. Nbc5 {[%clk 0:01:33.2]}
19... e5 {[%clk 0:01:06.1]} 20. dxe5 {[%clk 0:01:07.9]} 20... Nxe5 {[%clk
0:01:05.8]} 21. Nxe5 {[%clk 0:00:52.3]} 21... Bxe5 {[%clk 0:00:39.4]} 22. Kh1
{[%clk 0:00:41.7]} 22... Re8 {[%clk 0:00:30.6]} 23. Nd3 {[%clk 0:00:34.7]} 23...
Bd6 {[%clk 0:00:31.1]} 24. Qxe7+ {[%clk 0:00:20.9]} 24... Rxe7 {[%clk 0:00:32]}
25. b3 {[%clk 0:00:21.3]} 25... Rf8 {[%clk 0:00:29.8]} 26. Bb2 {[%clk
0:00:21.4]} 26... Re4 {[%clk 0:00:24.3]} 27. Rxf6 {[%clk 0:00:14.9]} 27... Rxf6
{[%clk 0:00:25.2]} 28. Rf1 {[%clk 0:00:15.2]} 28... d4 {[%clk 0:00:20.4]} 29.
Rd1 {[%clk 0:00:06.4]} 29... Kg6 {[%clk 0:00:18.5]} 30. c3 {[%clk 0:00:06.7]}
30... c5 {[%clk 0:00:18.6]} 31. cxd4 {[%clk 0:00:06.8]} 31... cxd4 {[%clk
0:00:19.5]} 32. Kg1 {[%clk 0:00:05.3]} 32... b6 {[%clk 0:00:16]} 33. Nf2 {[%clk
0:00:05.3]} 33... Bxh2+ {[%clk 0:00:13]} 34. Kxh2 {[%clk 0:00:03]} 34... Rxf2
{[%clk 0:00:13.5]} 35. Bxd4 {[%clk 0:00:02.9]} 35... Rxa2 {[%clk 0:00:13.8]} 36.
b4 {[%clk 0:00:02.9]} 36... Ree2 {[%clk 0:00:13.7]} 37. Bg1 {[%clk 0:00:03.8]}
37... Rxg2+ {[%clk 0:00:13.8]} 38. Kh1 {[%clk 0:00:04.6]} 38... Rg5 {[%clk
0:00:14.2]} 39. Rd6+ {[%clk 0:00:05]} 39... Kh5 {[%clk 0:00:14.7]} 40. Rd7
{[%clk 0:00:04.7]} 40... Ra1 {[%clk 0:00:14.9]} 41. Rxa7 {[%clk 0:00:05.4]}
41... Raxg1+ {[%clk 0:00:15.4]} 42. Kh2 {[%clk 0:00:05.3]} 42... R1g2+ {[%clk
0:00:15.8]} 43. Kh3 {[%clk 0:00:05.8]} 43... R5g3# {[%clk 0:00:16.4]} 0-1

[Event "Early-Titled-Tuesday-Blitz-April-23-2024"]
[Site "Chess.com"]
[Date "2024.04.23"]
[Round "1"]
[White "SirStrateg"]
[Black "Matols"]
[Result "1-0"]
[WhiteElo "2665"]
[BlackElo "2358"]
[TimeControl "180+1"]
[EndTime "8:07:31 PDT"]
[Termination "SirStrateg won by resignation"]

1. d4 {[%clk 0:03:00.9]} 1... d5 {[%clk 0:02:58.7]} 2. Bf4 {[%clk 0:02:59.8]}
2... Nf6 {[%clk 0:02:58.2]} 3. e3 {[%clk 0:03:00.3]} 3... c5 {[%clk 0:02:58.7]}
4. c3 {[%clk 0:03:00.6]} 4... Nc6 {[%clk 0:02:59.1]} 5. Nd2 {[%clk 0:03:00.4]}
5... Bg4 {[%clk 0:02:58.9]} 6. Ngf3 {[%clk 0:02:58]} 6... e6 {[%clk 0:02:59]} 7.
h3 {[%clk 0:02:54.7]} 7... Bxf3 {[%clk 0:02:53.4]} 8. Nxf3 {[%clk 0:02:54]} 8...
Bd6 {[%clk 0:02:53.9]} 9. Bxd6 {[%clk 0:02:48.8]} 9... Qxd6 {[%clk 0:02:54.8]}
10. Bb5 {[%clk 0:02:48.4]} 10... O-O {[%clk 0:02:55]} 11. O-O {[%clk 0:02:48.6]}
11... a6 {[%clk 0:02:53.7]} 12. Bxc6 {[%clk 0:02:47.5]} 12... Qxc6 {[%clk
0:02:47.4]} 13. Ne5 {[%clk 0:02:43.7]} 13... Qd6 {[%clk 0:02:46.7]} 14. f4
{[%clk 0:02:43]} 14... Ne4 {[%clk 0:02:42.9]} 15. a4 {[%clk 0:02:38.6]} 15...
cxd4 {[%clk 0:02:38.9]} 16. exd4 {[%clk 0:02:38.6]} 16... f5 {[%clk 0:02:36.6]}
17. a5 {[%clk 0:02:30.7]} 17... Rac8 {[%clk 0:02:26.5]} 18. Rf3 {[%clk
0:02:16.4]} 18... Qd8 {[%clk 0:02:19.1]} 19. Qa4 {[%clk 0:02:08.9]} 19... Rc7
{[%clk 0:02:14.1]} 20. Rd3 {[%clk 0:02:03.1]} 20... Qh4 {[%clk 0:02:11]} 21. Rf1
{[%clk 0:02:01.1]} 21... Ng3 {[%clk 0:02:01.5]} 22. Rf2 {[%clk 0:01:53.4]} 22...
Ne4 {[%clk 0:01:59]} 23. Rf1 {[%clk 0:01:34.7]} 23... Ng3 {[%clk 0:01:58.3]} 24.
Re1 {[%clk 0:01:26.9]} 24... Qxf4 {[%clk 0:01:50.7]} 25. Nf3 {[%clk 0:01:23.7]}
25... Ne4 {[%clk 0:01:48.3]} 26. Qb4 {[%clk 0:01:19.3]} 26... Qg3 {[%clk
0:01:38.8]} 27. Re2 {[%clk 0:01:14.2]} 27... Qf4 {[%clk 0:01:32]} 28. Rd1 {[%clk
0:01:11]} 28... h5 {[%clk 0:01:23.8]} 29. Ne5 {[%clk 0:01:06.4]} 29... Qh6
{[%clk 0:01:21.9]} 30. Qb6 {[%clk 0:01:02.5]} 30... Re7 {[%clk 0:01:13.9]} 31.
Qb4 {[%clk 0:00:46.7]} 31... Rfe8 {[%clk 0:00:54.7]} 32. h4 {[%clk 0:00:44.9]}
32... Qf6 {[%clk 0:00:52.5]} 33. Nf3 {[%clk 0:00:43.3]} 33... f4 {[%clk
0:00:50.2]} 34. Rde1 {[%clk 0:00:39.9]} 34... Qf5 {[%clk 0:00:49.1]} 35. Qb6
{[%clk 0:00:34.6]} 35... Rf8 {[%clk 0:00:47.4]} 36. Kh2 {[%clk 0:00:30.6]} 36...
Kh7 {[%clk 0:00:47.3]} 37. Rxe4 {[%clk 0:00:30]} 37... dxe4 {[%clk 0:00:46.4]}
38. Rxe4 {[%clk 0:00:30.7]} 38... Rf6 {[%clk 0:00:42.4]} 39. Re5 {[%clk
0:00:30.6]} 39... Qg4 {[%clk 0:00:40.7]} 40. Rg5 {[%clk 0:00:29]} 40... e5
{[%clk 0:00:35.9]} 41. Qd8 {[%clk 0:00:22]} 41... Qd7 {[%clk 0:00:24.9]} 42.
Rxh5+ {[%clk 0:00:22.4]} 42... Kg6 {[%clk 0:00:24]} 43. Nxe5+ {[%clk 0:00:21.6]}
43... Rxe5 {[%clk 0:00:24.2]} 44. Qxd7 {[%clk 0:00:19.8]} 44... Rxh5 {[%clk
0:00:24.2]} 45. Qxb7 {[%clk 0:00:18.8]} 45... Rxh4+ {[%clk 0:00:24.1]} 46. Kg1
{[%clk 0:00:19.4]} 46... Re6 {[%clk 0:00:23.1]} 47. Kf2 {[%clk 0:00:16.5]} 47...
Rg4 {[%clk 0:00:22]} 48. Qf3 {[%clk 0:00:16.2]} 48... Kf5 {[%clk 0:00:21.1]} 49.
Qd5+ {[%clk 0:00:14.7]} 1-0